bitfinex-derivatives/quotes_SOLF0:USTF0_20250505
["timestamp","ask_amount","ask_price","bid_price","bid_amount"]
[1746458430127,6.9155,144.61,144.56,24.84]
[1746458430425,24.88,144.62,144.56,24.84]
[1746458430624,31.7952,144.62,144.56,24.84]
[1746458431228,31.7952,144.62,144.56,25.84]
[1746458431422,31.7952,144.62,144.6,6.9158]
[1746458435429,24.88,144.62,144.6,6.9158]
[1746458436032,31.795,144.62,144.6,6.9158]
[1746458436226,26.9522,144.65,144.56,37.55157529]
[1746458436527,24.84,144.65,144.57,4.1178]
[1746458436727,24.84,144.65,144.57,6.0945]
[1746458437332,6.9127,144.67,144.57,6.0945]
[1746458437535,26.8112,144.68,144.57,6.0945]
[1746458437929,6.9142,144.64,144.61,6.9152]
[1746458439232,6.9145,144.63,144.61,6.9152]
[1746458439429,6.9145,144.63,144.6,6.9156]
[1746458439628,11.71157529,144.67,144.57,6.0945]
[1746458439834,6.9157,144.61,144.57,2.126]
[1746458440130,6.9157,144.61,144.59,6.9163]
[1746458441329,6.9157,144.61,144.58,6.9166]
[1746458441835,6.9157,144.61,144.57,2.126]
[1746458442132,24.84,144.64,144.57,2.126]
[1746458442332,24.84,144.67,144.59,11.71157529]
[1746458442635,6.9133,144.66,144.63,6.9142]
[1746458442934,6.9133,144.66,144.6,24.84]
[1746458443335,6.9133,144.66,144.64,6.9139]
[1746458443535,24.84,144.67,144.6,44.95]
[1746458443935,24.84,144.67,144.63,6.9141]
[1746458444130,6.9135,144.66,144.63,6.9141]
[1746458444435,24.84,144.67,144.63,6.9141]
[1746458444734,6.9138,144.65,144.63,6.9141]
[1746458446838,6.914,144.64,144.62,6.9148]
[1746458447440,6.914,144.64,144.61,6.9152]
[1746458447741,6.914,144.64,144.6,44.95]
[1746458448034,24.84,144.67,144.6,44.95]
[1746458448636,6.9143,144.64,144.6,44.95]
[1746458449035,24.84,144.67,144.6,44.95]
[1746458449434,24.84,144.67,144.61,6.9152]
[1746458450829,6.9144,144.64,144.61,6.9152]
[1746458451033,24.84,144.67,144.61,6.9152]
[1746458451429,6.9146,144.63,144.61,6.9152]
[1746458453136,6.915,144.62,144.6,51.8657]
[1746458453436,24.84,144.67,144.6,51.8657]
[1746458453840,6.9148,144.63,144.6,51.8657]
[1746458454029,6.9148,144.63,144.61,6.9154]
[1746458457741,6.9143,144.64,144.62,6.9149]
[1746458458636,6.9138,144.65,144.62,6.9149]
[1746458458838,6.9138,144.65,144.63,6.9144]
[1746458459036,24.84,144.67,144.6,44.95]
[1746458459345,6.914,144.65,144.62,6.9147]
[1746458459535,24.84,144.67,144.62,6.9147]
[1746458462543,6.914,144.65,144.62,6.9147]
[1746458464047,6.914,144.65,144.63,6.9144]
[1746458464245,6.914,144.65,144.6,44.95]
[1746458464649,6.914,144.65,144.62,6.9148]
[1746458465945,24.84,144.67,144.62,6.9148]
[1746458466647,6.9138,144.65,144.62,6.9148]
[1746458468947,6.9138,144.65,144.6,24.84]
[1746458469548,6.9138,144.65,144.62,6.915]
[1746458469950,6.9141,144.64,144.6,24.84]
[1746458470152,6.9141,144.64,144.61,6.915]
[1746458471151,6.9141,144.64,144.6,24.84]
[1746458471152,6.915,144.63,144.6,31.7557]
[1746458471451,36.55157529,144.67,144.57,26.946]
[1746458471656,2.0681,144.66,144.57,26.946]
[1746458471849,6.9159,144.61,144.58,6.9164]
[1746458472152,6.9159,144.61,144.57,26.946]
[1746458472351,24.84,144.67,144.57,26.946]
[1746458472556,24.84,144.67,144.58,4.1066]
[1746458472750,6.9138,144.65,144.62,6.9148]
[1746458473255,6.9138,144.65,144.58,15.81817529]
[1746458473556,6.9138,144.65,144.61,6.9153]
[1746458473853,6.9138,144.65,144.62,12.8]
[1746458474049,6.9143,144.64,144.62,12.8]
[1746458475253,6.9145,144.63,144.62,12.8]
[1746458476451,24.84,144.67,144.62,12.8]
[1746458477150,6.9145,144.63,144.62,12.8]
[1746458478256,6.9142,144.64,144.62,12.8]
[1746458482156,6.9138,144.65,144.62,19.7147]
[1746458482456,24.84,144.67,144.62,12.8]
[1746458482856,24.84,144.67,144.63,6.9142]
[1746458483251,6.9137,144.65,144.62,19.7148]
[1746458487264,6.914,144.64,144.62,19.7148]
[1746458487563,24.84,144.67,144.62,12.8]
[1746458488768,6.9133,144.66,144.62,19.7146]
[1746458489269,6.9135,144.65,144.62,19.7146]
[1746458490272,6.9144,144.64,144.62,12.8]
[1746458490564,24.84,144.67,144.62,12.8]
[1746458490865,6.9143,144.64,144.62,12.8]
[1746458491169,24.84,144.67,144.62,19.7149]
[1746458491471,6.914,144.65,144.62,19.7149]
[1746458491767,24.84,144.67,144.62,19.7149]
[1746458491969,6.9138,144.65,144.62,19.7149]
[1746458492168,6.9138,144.65,144.63,6.9143]
[1746458492968,6.9138,144.65,144.62,19.7147]
[1746458493773,6.9133,144.66,144.62,19.7147]
[1746458493963,6.9133,144.66,144.63,6.9144]
[1746458494870,6.9133,144.66,144.64,6.914]
[1746458497169,24.84,144.67,144.66,6.9131]
[1746458497473,24.8,144.7,144.63,24.8]
[1746458497670,24.8,144.7,144.63,28.9925]
[1746458497972,24.8,144.7,144.68,6.9118]
[1746458498573,31.7114,144.7,144.67,6.9124]
[1746458499372,31.7114,144.7,144.68,6.9121]
[1746458499670,31.7114,144.7,144.64,2.1495]
[1746458499974,31.7114,144.7,144.67,6.9124]
[1746458500574,24.8,144.7,144.64,2.1495]
[1746458500963,24.8,144.73,144.64,13.86107529]
[1746458501164,6.9104,144.72,144.64,13.86107529]
[1746458502076,6.9104,144.72,144.69,6.9113]
[1746458502369,6.9104,144.72,144.67,24.8]
[1746458502571,24.8,144.73,144.67,24.8]
[1746458502771,24.8,144.73,144.67,36.51157529]
[1746458503075,24.56580392,144.75,144.68,3.9968]
[1746458503477,24.56580392,144.75,144.7,11.71157529]
[1746458503676,24.56580392,144.75,144.73,6.9093]
[1746458503971,24.56580392,144.75,144.71,24.8]
[1746458504178,24.56580392,144.75,144.73,6.9095]
[1746458504676,24.56580392,144.75,144.74,6.9092]
[1746458505078,65.50881047,144.76,144.74,6.9092]
[1746458505278,65.50881047,144.76,144.71,24.8]
[1746458505279,6.9076,144.78,144.75,6.9085]
[1746458505577,24.8,144.79,144.71,24.8]
[1746458506077,6.9078,144.77,144.73,6.9095]
[1746458506478,6.9078,144.77,144.71,24.8]
[1746458506780,6.9078,144.77,144.73,6.9093]
[1746458507275,6.9078,144.77,144.71,24.8]
[1746458507880,6.9078,144.77,144.73,6.9094]
[1746458508275,6.9084,144.76,144.73,6.9094]
[1746458509981,6.908,144.77,144.74,6.9092]
[1746458510981,24.8,144.79,144.73,6.9096]
[1746458511180,24.8,144.79,144.71,24.8]
[1746458511680,24.8,144.79,144.73,6.9097]
[1746458512281,6.9086,144.76,144.73,6.9097]
[1746458512479,6.9086,144.76,144.74,6.9092]
[1746458513081,6.9086,144.76,144.73,6.9095]
[1746458514381,6.9086,144.76,144.74,6.9092]
[1746458515082,24.8,144.79,144.75,6.9087]
[1746458515784,24.8,144.79,144.69,2.1169]
[1746458516278,6.9099,144.73,144.7,6.9109]
[1746458516480,24.8,144.79,144.68,28.7568]
[1746458516876,6.909,144.75,144.68,28.7568]
[1746458517083,24.8,144.79,144.69,11.71157529]
[1746458517486,6.9086,144.76,144.73,6.9095]
[1746458518084,6.9086,144.76,144.74,6.9092]
[1746458518378,24.8,144.79,144.72,24.76]
[1746458518584,24.8,144.79,144.72,36.47157529]
[1746458518988,24.8,144.79,144.73,2.0418]
[1746458519184,2.0326,144.81,144.73,6.2191]
[1746458519588,6.9068,144.8,144.77,6.9076]
[1746458520279,6.9068,144.8,144.78,6.9073]
[1746458520485,6.9069,144.79,144.73,6.2191]
[1746458520685,6.9069,144.79,144.76,6.908]
[1746458520989,6.9074,144.78,144.76,6.908]
[1746458521888,6.9074,144.78,144.75,6.9086]
[1746458522190,36.47157529,144.82,144.73,4.0914]
[1746458522490,6.9076,144.78,144.75,6.9087]
[1746458523389,24.76,144.82,144.73,4.0914]
[1746458523589,24.76,144.82,144.74,11.71157529]
[1746458523888,2.0786,144.83,144.74,13.76647529]
[1746458524091,24.76,144.85,144.74,13.76647529]
[1746458524494,6.9055,144.82,144.74,13.76647529]
[1746458524993,6.9055,144.82,144.79,6.9065]
[1746458525291,6.9059,144.81,144.79,6.9065]
[1746458525793,6.9059,144.81,144.78,6.9071]
[1746458526091,6.9059,144.81,144.77,24.76]
[1746458526387,6.9059,144.81,144.78,6.9071]
[1746458526587,24.76,144.85,144.74,26.8149]
[1746458526785,2.1226,144.84,144.74,26.8149]
[1746458527190,2.1226,144.84,144.74,24.76]
[1746458527892,20.75412108,144.84,144.74,24.76]
[1746458528095,20.75412108,144.84,144.75,6.9087]
[1746458528393,20.75412108,144.84,144.74,24.76]
[1746458528593,6.9073,144.79,144.76,6.9082]
[1746458528789,24.76,144.81,144.73,4.0914]
[1746458529188,6.9076,144.78,144.75,6.9085]
[1746458529393,24.76,144.81,144.73,4.0914]
[1746458529993,2.043,144.8,144.73,4.0914]
[1746458530291,6.9083,144.77,144.74,6.9091]
[1746458530594,2.043,144.8,144.73,4.0914]
[1746458530793,2.043,144.8,144.73,2.0418]
[1746458531093,6.908,144.77,144.73,2.0418]
[1746458531392,2.043,144.8,144.73,2.0418]
[1746458531892,2.043,144.8,144.71,24.76]
[1746458532193,2.043,144.8,144.74,6.909]
[1746458532693,2.043,144.8,144.75,6.9087]
[1746458532890,2.043,144.8,144.71,24.76]
[1746458533289,6.907,144.79,144.76,6.908]
[1746458534696,6.907,144.79,144.77,6.9077]
[1746458534893,6.9066,144.8,144.77,6.9077]
[1746458535397,6.907,144.79,144.76,6.9081]
[1746458537998,6.9066,144.8,144.71,24.76]
[1746458538597,6.9066,144.8,144.77,6.9074]
[1746458538992,6.9069,144.79,144.75,24.76]
[1746458539191,6.9069,144.79,144.76,6.9079]
[1746458539391,6.9074,144.78,144.76,6.9079]
[1746458539599,24.76,144.81,144.76,6.9079]
[1746458539797,24.76,144.81,144.77,6.9075]
[1746458540097,6.9067,144.8,144.77,6.9075]
[1746458540399,24.76,144.81,144.76,6.9081]
[1746458540696,6.9071,144.79,144.76,6.9081]
[1746458541692,6.9071,144.79,144.77,6.9077]
[1746458541996,6.9066,144.8,144.77,6.9077]
[1746458542297,24.76,144.81,144.76,6.908]
[1746458542591,6.9071,144.79,144.76,6.908]
[1746458542895,24.76,144.81,144.76,6.908]
[1746458543100,6.9078,144.77,144.75,31.6686]
[1746458543497,6.9078,144.77,144.75,6.9086]
[1746458543998,6.9078,144.77,144.74,6.9088]
[1746458544298,24.76,144.81,144.72,24.74]
[1746458544597,24.76,144.81,144.72,31.65]
[1746458544798,6.909,144.75,144.72,31.65]
[1746458545100,6.909,144.75,144.73,6.9096]
[1746458545398,6.9085,144.76,144.73,6.9096]
[1746458546100,6.9089,144.75,144.73,6.9096]
[1746458546401,6.9089,144.75,144.72,24.74]
[1746458546698,6.9095,144.74,144.7,2.0876]
[1746458547096,6.9095,144.74,144.71,6.9104]
[1746458548100,24.74,144.77,144.68,1.9533]
[1746458548595,6.91,144.73,144.7,6.9111]
[1746458548801,6.91,144.73,144.68,1.9533]
[1746458549300,6.91,144.73,144.7,6.9109]
[1746458549897,6.91,144.73,144.68,1.9533]
[1746458549898,6.91,144.73,144.71,6.9106]
[1746458550201,6.9095,144.74,144.71,6.9106]
[1746458550399,24.74,144.77,144.68,1.9533]
[1746458550700,6.9093,144.74,144.68,1.9533]
[1746458550903,6.9093,144.74,144.72,6.9101]
[1746458551091,24.74,144.77,144.72,6.9101]
[1746458551291,6.9091,144.75,144.72,6.9101]
[1746458552603,24.74,144.77,144.68,1.9533]
[1746458553400,6.909,144.75,144.72,6.9099]
[1746458554103,6.9085,144.76,144.73,6.9096]
[1746458554903,6.9084,144.76,144.73,6.9096]
[1746458555103,24.74,144.77,144.73,6.9096]
[1746458555600,24.74,144.77,144.72,6.91]
[1746458555804,24.74,144.77,144.69,2.0969]
[1746458556202,6.91,144.73,144.7,6.9108]
[1746458556604,6.91,144.73,144.72,1.0]
[1746458562707,6.9097,144.74,144.72,1.0]
[1746458562906,24.74,144.77,144.72,1.0]
[1746458563407,6.9097,144.73,144.72,1.0]
[1746458574123,31.6497,144.73,144.72,1.0]
[1746458576031,24.74,144.73,144.72,1.0]
[1746458580433,31.6497,144.73,144.72,1.0]
[1746458583338,24.74,144.73,144.72,1.0]
[1746458584040,31.6497,144.73,144.72,1.0]
[1746458584241,24.74,144.73,144.72,1.0]
[1746458585140,31.6497,144.73,144.72,1.0]
[1746458585341,24.74,144.73,144.72,1.0]
[1746458586441,31.6497,144.73,144.72,1.0]
[1746458587141,24.74,144.73,144.72,1.0]
[1746458587741,31.6497,144.73,144.72,1.0]
[1746458588341,24.74,144.73,144.72,1.0]
[1746458589240,31.6497,144.73,144.72,1.0]
[1746458590841,26.54480392,144.79,144.72,1.0]
[1746458591043,24.74,144.78,144.72,1.0]
[1746458591439,49.30580392,144.78,144.72,1.0]
[1746458591944,56.21340392,144.78,144.72,1.0]
[1746458592243,49.30580392,144.78,144.72,1.0]
[1746458592743,56.21340392,144.78,144.74,6.909]
[1746458593044,49.30580392,144.78,144.74,6.909]
[1746458593438,6.9081,144.77,144.74,6.909]
[1746458593638,6.9081,144.77,144.73,6.9094]
[1746458594145,6.9083,144.76,144.74,6.9092]
[1746458595344,6.909,144.75,144.72,1.0]
[1746458595639,24.74,144.78,144.72,1.0]
[1746458596144,24.74,144.78,144.72,7.9099]
[1746458596742,6.909,144.75,144.72,1.0]
[1746458596947,24.74,144.78,144.72,1.0]
[1746458597148,1.9984,144.77,144.72,1.0]
[1746458597845,6.9096,144.74,144.72,1.0]
[1746458599749,24.74,144.73,144.7,16.11]
[1746458600251,6.9107,144.71,144.7,16.11]
[1746458600853,6.9126,144.67,144.64,6.9139]
[1746458601348,24.74,144.69,144.63,6.9143]
[1746458601850,24.74,144.69,144.62,1.0]
[1746458602352,24.74,144.69,144.62,3.0021]
[1746458602551,24.74,144.69,144.63,11.65337267]
[1746458603050,24.74,144.69,144.67,6.9121]
[1746458603846,24.74,144.69,144.68,6.9121]
[1746458604950,24.74,144.72,144.69,6.9114]
[1746458606853,24.74,144.72,144.65,24.74]
[1746458607054,24.74,144.72,144.66,3.9652]
[1746458607652,24.74,144.72,144.7,6.9108]
[1746458608051,24.74,144.72,144.66,3.9652]
[1746458608253,24.74,144.72,144.68,6.9117]
[1746458608556,31.6503,144.72,144.68,6.9117]
[1746458608955,24.74,144.72,144.69,6.9115]
[1746458609254,24.74,144.72,144.66,3.9652]
[1746458609456,24.74,144.72,144.68,6.9119]
[1746458609654,6.9107,144.71,144.68,6.9119]
[1746458609952,6.9107,144.71,144.66,3.9652]
[1746458610153,6.9107,144.71,144.67,6.9124]
[1746458610550,6.9112,144.7,144.67,6.9124]
[1746458610749,24.74,144.72,144.66,3.9652]
[1746458611154,6.9109,144.71,144.66,3.9652]
[1746458611653,24.74,144.72,144.66,15.61857267]
[1746458611962,24.74,144.76,144.71,6.9104]
[1746458612357,6.9093,144.74,144.71,6.9104]
[1746458612554,6.9093,144.74,144.72,6.9101]
[1746458613456,6.909,144.75,144.72,6.9101]
[1746458613954,6.909,144.75,144.71,6.9104]
[1746458614159,6.9093,144.74,144.71,6.9104]
[1746458615062,6.9093,144.74,144.7,6.9109]
[1746458615856,6.9093,144.74,144.71,6.9106]
[1746458617663,6.9093,144.74,144.7,6.9109]
[1746458617960,6.9098,144.73,144.67,1.9642]
[1746458618164,24.74,144.76,144.69,6.9114]
[1746458618567,24.74,144.76,144.67,1.9642]
[1746458618865,24.74,144.76,144.68,6.9118]
[1746458619065,6.91,144.73,144.67,1.9642]
[1746458619265,6.91,144.73,144.67,2.9642]
[1746458619470,6.91,144.73,144.69,6.9114]
[1746458620065,6.91,144.73,144.7,6.9111]
[1746458620266,6.91,144.73,144.67,27.7042]
[1746458621565,6.91,144.73,144.7,6.9109]
[1746458623969,6.9103,144.72,144.69,6.9114]
[1746458624168,6.9103,144.72,144.67,25.74]
[1746458624563,6.9103,144.72,144.68,6.9117]
[1746458625664,24.74,144.76,144.68,6.9117]
[1746458625862,6.9107,144.71,144.68,6.9117]
[1746458626467,6.9105,144.72,144.68,6.9117]
[1746458627659,6.9107,144.71,144.68,6.9117]
[1746458627864,24.74,144.72,144.67,1.0]
[1746458628769,6.911,144.71,144.67,1.0]
[1746458629068,6.911,144.71,144.67,7.9123]
[1746458629270,6.9112,144.7,144.67,7.9123]
[1746458630471,6.9109,144.71,144.68,6.912]
[1746458630673,24.74,144.72,144.67,1.0]
[1746458631173,6.9112,144.7,144.67,7.9123]
[1746458631775,24.74,144.72,144.67,1.0]
[1746458632575,31.6503,144.72,144.67,1.0]
[1746458632976,24.74,144.72,144.67,1.0]
[1746458633175,24.74,144.72,144.69,6.9112]
[1746458633380,24.74,144.72,144.67,1.0]
[1746458634076,6.9114,144.7,144.67,7.9122]
[1746458634582,24.74,144.72,144.67,1.0]
[1746458635282,6.9119,144.69,144.67,1.0]
[1746458636184,6.9114,144.7,144.67,1.0]
[1746458636379,6.9114,144.7,144.67,7.9123]
[1746458636580,24.74,144.72,144.67,1.0]
[1746458636787,6.9109,144.71,144.67,1.0]
[1746458637082,6.9109,144.71,144.68,6.9118]
[1746458641787,24.74,144.72,144.67,1.0]
[1746458642390,31.6503,144.72,144.67,1.0]
[1746458642585,24.74,144.72,144.67,1.0]
[1746458642986,24.74,144.72,144.7,6.9108]
[1746458643689,24.72,144.75,144.7,6.9108]
[1746458644092,6.9101,144.73,144.7,6.9108]
[1746458644594,24.72,144.75,144.7,6.9108]
[1746458645290,6.91,144.73,144.7,6.9108]
[1746458645689,6.91,144.73,144.71,6.9106]
[1746458646991,6.9093,144.74,144.71,6.9106]
[1746458647292,24.72,144.75,144.73,6.9097]
[1746458648089,24.72,144.75,144.68,2.047]
[1746458648485,6.9094,144.74,144.71,6.9103]
[1746458648988,24.72,144.76,144.68,2.047]
[1746458649392,24.72,144.76,144.7,6.9108]
[1746458649687,24.72,144.76,144.68,2.047]
[1746458650190,6.9101,144.73,144.7,6.9109]
[1746458650390,24.72,144.76,144.7,6.9109]
[1746458650693,547.4,144.78,144.7,6.9109]
[1746458650995,24.72,144.77,144.7,6.9109]
[1746458651293,6.91,144.73,144.7,6.9109]
[1746458654893,24.72,144.75,144.68,2.047]
[1746458655104,24.72,144.75,144.67,1.0]
[1746458655698,6.9117,144.69,144.67,1.0]
[1746458655898,24.72,144.71,144.67,1.0]
[1746458656296,6.9121,144.68,144.67,1.0]
[1746458664904,6.9135,144.65,144.64,13.32]
[1746458665306,24.72,144.67,144.62,2.9952]
[1746458665503,6.914,144.64,144.62,1.0]
[1746458666608,6.9138,144.65,144.62,1.0]
[1746458667909,6.9138,144.65,144.62,7.9147]
[1746458672513,6.9132,144.66,144.63,6.9144]
[1746458673014,6.9132,144.66,144.62,1.0]
[1746458673612,6.9135,144.65,144.62,7.9147]
[1746458674114,6.9135,144.65,144.62,1.0]
[1746458675714,6.9135,144.65,144.62,7.9149]
[1746458676211,6.9135,144.65,144.62,1.0]
[1746458676813,6.9135,144.65,144.62,7.9149]
[1746458679317,6.9135,144.65,144.62,1.0]
[1746458680517,6.914,144.64,144.62,1.0]
[1746458680718,24.72,144.67,144.62,1.0]
[1746458681016,6.9139,144.65,144.62,1.0]
[1746458681816,6.9139,144.65,144.62,2.0]
[1746458682117,6.914,144.64,144.62,2.0]
[1746458684112,24.72,144.67,144.62,2.0]
[1746458684315,6.9145,144.63,144.62,2.0]
[1746458691423,31.6345,144.63,144.62,2.0]
[1746458691625,31.6345,144.63,144.58,1.99]
[1746458691626,6.9161,144.6,144.57,2.0645]
[1746458692127,6.9161,144.6,144.57,8.9818]
[1746458692326,6.9161,144.6,144.56,1.0]
[1746458692327,6.9165,144.59,144.56,1.0]
[1746458692724,6.9165,144.59,144.56,7.9178]
[1746458693028,6.9161,144.6,144.56,7.9178]
[1746458693522,24.72,144.63,144.57,6.9173]
[1746458693728,24.72,144.63,144.56,1.0]
[1746458694726,6.9152,144.62,144.59,6.9162]
[1746458697326,24.72,144.63,144.6,6.9155]
[1746458697629,24.72,144.63,144.56,1.0]
[1746458697929,6.9152,144.62,144.56,1.0]
[1746458698129,24.72,144.63,144.56,1.0]
[1746458698435,6.9167,144.59,144.56,7.9175]
[1746458698633,6.9167,144.59,144.56,1.0]
[1746458699136,6.9161,144.6,144.57,6.9172]
[1746458700332,6.9161,144.6,144.57,24.1172]
[1746458700735,6.9157,144.61,144.58,6.9169]
[1746458701835,24.72,144.63,144.57,17.2]
[1746458702030,36.37337267,144.63,144.57,17.2]
[1746458702836,6.9165,144.59,144.57,17.2]
[1746458703238,36.37337267,144.63,144.57,17.2]
[1746458703433,6.9158,144.61,144.57,24.1171]
[1746458705036,36.37337267,144.63,144.57,24.1171]
[1746458705639,36.37337267,144.63,144.58,6.9165]
[1746458705939,24.72,144.63,144.58,6.9165]
[1746458706140,6.9158,144.61,144.58,6.9165]
[1746458706740,6.9161,144.6,144.57,24.1171]
[1746458708442,6.9157,144.61,144.58,6.9168]
[1746458709444,24.72,144.63,144.57,17.2]
[1746458710042,6.9157,144.61,144.58,6.9165]
[1746458712143,24.72,144.63,144.57,17.2]
[1746458712545,24.72,144.63,144.58,4.1573]
[1746458712843,6.9151,144.62,144.59,6.9162]
[1746458713846,24.72,144.63,144.58,4.1573]
[1746458714047,24.72,144.63,144.57,17.2]
[1746458714239,6.9162,144.6,144.57,17.2]
[1746458715149,24.72,144.63,144.57,17.2]
[1746458715648,6.9156,144.61,144.58,6.9168]
[1746458716050,24.72,144.63,144.57,17.2]
[1746458716751,24.72,144.63,144.57,24.1173]
[1746458717352,6.9161,144.6,144.57,24.1173]
[1746458718455,6.9157,144.61,144.57,24.1173]
[1746458718756,24.72,144.63,144.57,24.1173]
[1746458719848,6.9158,144.61,144.57,24.1173]
[1746458720049,24.72,144.63,144.57,17.2]
[1746458720353,36.37337267,144.63,144.57,17.2]
[1746458720553,6.9169,144.58,144.57,17.2]
[1746458725759,24.72,144.59,144.49,30.7234]
[1746458726154,24.72,144.59,144.5,6.9205]
[1746458726353,6.9192,144.54,144.5,6.9205]
[1746458726550,24.72,144.55,144.5,6.9205]
[1746458727260,6.919,144.54,144.5,6.9205]
[1746458727456,24.72,144.55,144.5,6.9205]
[1746458727657,24.72,144.55,144.49,12.9244]
[1746458727857,24.72,144.55,144.46,24.72]
[1746458728053,24.72,144.55,144.42,6.1921]
[1746458728359,6.9216,144.49,144.43,24.72]
[1746458728556,24.72,144.5,144.43,24.72]
[1746458729060,6.922,144.48,144.43,24.72]
[1746458729563,24.72,144.5,144.43,24.72]
[1746458729760,6.9214,144.49,144.43,24.72]
[1746458730861,6.9214,144.49,144.46,6.9224]
[1746458731662,31.641,144.5,144.47,6.9221]
[1746458732064,24.72,144.5,144.43,24.72]
[1746458732265,6.9212,144.49,144.45,6.9231]
[1746458732458,6.9212,144.49,144.43,24.72]
[1746458732859,6.9212,144.49,144.46,6.9224]
[1746458733065,31.6409,144.5,144.43,24.72]
[1746458733364,31.6409,144.5,144.47,6.9221]
[1746458733765,31.6409,144.5,144.43,24.72]
[1746458733965,6.9214,144.49,144.46,6.9225]
[1746458734455,31.6409,144.5,144.46,6.9225]
[1746458734662,31.6409,144.5,144.47,6.9221]
[1746458735968,24.72,144.5,144.47,6.9221]
[1746458737569,24.72,144.5,144.48,6.9216]
[1746458737867,11.65337267,144.54,144.44,11.65337267]
[1746458737868,24.74,144.53,144.44,11.65337267]
[1746458738169,6.92,144.52,144.49,6.9209]
[1746458738569,24.74,144.53,144.49,6.9209]
[1746458738758,6.9198,144.52,144.49,6.9209]
[1746458739167,6.9203,144.51,144.48,6.9215]
[1746458739464,6.9203,144.51,144.44,11.65337267]
[1746458739672,24.74,144.53,144.44,11.65337267]
[1746458739872,24.74,144.53,144.47,6.9218]
[1746458740571,6.9206,144.51,144.47,6.9218]
[1746458740872,6.9206,144.51,144.48,6.9216]
[1746458741172,6.9206,144.51,144.44,11.65337267]
[1746458741473,6.9206,144.51,144.47,6.922]
[1746458742175,6.9207,144.5,144.47,6.922]
[1746458743471,24.74,144.53,144.44,11.65337267]
[1746458743670,11.65337267,144.51,144.42,6.1921]
[1746458744070,11.65337267,144.51,144.43,6.9238]
[1746458744675,6.9229,144.46,144.42,13.1165]
[1746458744865,6.9229,144.46,144.42,6.1921]
[1746458745174,6.9225,144.47,144.42,6.1921]
[1746458745374,24.74,144.48,144.43,6.9238]
[1746458746174,6.9226,144.47,144.43,6.9238]
[1746458747274,6.9227,144.46,144.43,6.9238]
[1746458749078,6.9231,144.45,144.42,13.1164]
[1746458749676,6.9236,144.44,144.42,6.1921]
[1746458749978,24.74,144.48,144.42,6.1921]
[1746458750278,6.9235,144.45,144.42,6.1921]
[1746458750579,24.74,144.48,144.42,6.1921]
[1746458751577,6.9224,144.47,144.44,6.9232]
[1746458754775,6.9227,144.46,144.43,6.9238]
[1746458754980,24.74,144.48,144.42,6.1921]
[1746458755679,6.9224,144.47,144.44,6.9235]
[1746458757184,6.9228,144.46,144.43,6.9239]